[Event "*** Titled Tuesday Blitz AM"]
[Site "Chess.com"]
[Date "2020.01.07"]
[Round "5"]
[White "bluejay1897"]
[Black "arminmusovic"]
[Result "1-0"]
[WhiteElo "2377"]
[BlackElo "2495"]
[TimeControl "180+2"]
[EndTime "10:07:59 PST"]
[Termination "bluejay1897 won by resignation"]

1. Nf3 {[%clk 0:03:01.9]} 1... a6 {[%clk 0:03:00.5]} 2. g3 {[%clk 0:03:02.9]}
2... e6 {[%clk 0:03:01.9]} 3. Bg2 {[%clk 0:03:04.3]} 3... d5 {[%clk 0:03:03.8]}
4. O-O {[%clk 0:03:05.4]} 4... Nf6 {[%clk 0:03:05.7]} 5. b3 {[%clk 0:03:06.2]}
5... Be7 {[%clk 0:03:06.8]} 6. Bb2 {[%clk 0:03:07.7]} 6... O-O {[%clk
0:03:08.4]} 7. c4 {[%clk 0:03:08.8]} 7... c5 {[%clk 0:03:09.9]} 8. cxd5 {[%clk
0:03:09.5]} 8... exd5 {[%clk 0:03:10.8]} 9. d4 {[%clk 0:03:10.8]} 9... Nc6
{[%clk 0:03:06.8]} 10. Nc3 {[%clk 0:03:11.6]} 10... Re8 {[%clk 0:03:01.8]} 11.
Rc1 {[%clk 0:03:09.1]} 11... cxd4 {[%clk 0:02:33.2]} 12. Nxd4 {[%clk 0:03:08.6]}
12... Bg4 {[%clk 0:02:28.6]} 13. h3 {[%clk 0:03:00.3]} 13... Bh5 {[%clk
0:02:29.8]} 14. Nxc6 {[%clk 0:02:43.9]} 14... bxc6 {[%clk 0:02:30.5]} 15. Na4
{[%clk 0:02:43.5]} 15... Bd6 {[%clk 0:02:19.7]} 16. g4 {[%clk 0:02:38.4]} 16...
Nxg4 {[%clk 0:02:07.5]} 17. hxg4 {[%clk 0:02:36.1]} 17... Qh4 {[%clk 0:02:08.7]}
18. f4 {[%clk 0:02:33.8]} 18... Bxg4 {[%clk 0:02:07.4]} 19. Rc2 {[%clk
0:02:22.7]} 19... Re6 {[%clk 0:01:42.1]} 20. Qd4 {[%clk 0:02:07.2]} 20... Rg6
{[%clk 0:01:36.7]} 21. Rf2 {[%clk 0:02:06.1]} 21... Re8 {[%clk 0:01:07.4]} 22.
Rxc6 {[%clk 0:01:58.4]} 22... Bf8 {[%clk 0:00:39.8]} 23. Rxg6 {[%clk 0:01:55.9]}
23... hxg6 {[%clk 0:00:41.7]} 24. Nc3 {[%clk 0:01:51]} 24... Rc8 {[%clk
0:00:33]} 25. Nxd5 {[%clk 0:01:45.1]} 25... Rc2 {[%clk 0:00:34]} 26. e4 {[%clk
0:01:35.3]} 26... Rc8 {[%clk 0:00:16.5]} 27. b4 {[%clk 0:01:33.1]} 27... Be6
{[%clk 0:00:17.4]} 28. a3 {[%clk 0:01:23.2]} 28... Qg3 {[%clk 0:00:14.9]} 29.
Ne7+ {[%clk 0:01:19.6]} 29... Kh7 {[%clk 0:00:14.3]} 30. Nxc8 {[%clk 0:01:20.3]}
30... Bxc8 {[%clk 0:00:15.5]} 31. Rf3 {[%clk 0:01:17.7]} 31... Qe1+ {[%clk
0:00:16.3]} 32. Bf1 {[%clk 0:01:17]} 32... Bg4 {[%clk 0:00:16.7]} 33. Rf2 {[%clk
0:01:15.4]} 33... Qb1 {[%clk 0:00:17.5]} 34. Kg2 {[%clk 0:01:08.8]} 34... a5
{[%clk 0:00:14.5]} 35. Be2 {[%clk 0:01:07.9]} 35... Bxe2 {[%clk 0:00:13.9]} 36.
Rxe2 {[%clk 0:01:08.5]} 36... axb4 {[%clk 0:00:12.6]} 37. axb4 {[%clk
0:01:09.5]} 37... Qa2 {[%clk 0:00:12.6]} 38. Bc3 {[%clk 0:01:07.7]} 38... Qe6
{[%clk 0:00:13.5]} 39. Kf2 {[%clk 0:00:59.7]} 39... Qh3 {[%clk 0:00:12.2]} 40.
Qe3 {[%clk 0:00:55.4]} 40... Qh1 {[%clk 0:00:09.8]} 41. Qg3 {[%clk 0:00:52.6]}
41... Kg8 {[%clk 0:00:10.4]} 42. f5 {[%clk 0:00:50.6]} 42... gxf5 {[%clk
0:00:09.3]} 43. exf5 {[%clk 0:00:51.7]} 43... Qd5 {[%clk 0:00:09.5]} 44. f6
{[%clk 0:00:49.7]} 44... g6 {[%clk 0:00:08.4]} 45. Qe5 {[%clk 0:00:39.2]} 45...
Qd7 {[%clk 0:00:07.9]} 46. Rd2 {[%clk 0:00:35.5]} 46... Qh3 {[%clk 0:00:08.3]}
47. Rd8 {[%clk 0:00:34.1]} 47... Qh4+ {[%clk 0:00:09.8]} 48. Ke2 {[%clk
0:00:33.5]} 48... Qg4+ {[%clk 0:00:09.2]} 49. Kd2 {[%clk 0:00:33]} 49... Qg2+
{[%clk 0:00:10.3]} 50. Kd3 {[%clk 0:00:32.5]} 50... Qf1+ {[%clk 0:00:11.7]} 51.
Kc2 {[%clk 0:00:32.7]} 51... Qg2+ {[%clk 0:00:11.8]} 52. Kb3 {[%clk 0:00:31.8]}
52... Kh7 {[%clk 0:00:12.9]} 53. Rxf8 {[%clk 0:00:31.7]} 53... Qh1 {[%clk
0:00:13.8]} 54. Rh8+ {[%clk 0:00:28.8]} 54... Kxh8 {[%clk 0:00:14.7]} 55. Qe8+
{[%clk 0:00:30.2]} 55... Kh7 {[%clk 0:00:16.2]} 56. Qxf7+ {[%clk 0:00:31.5]}
56... Kh6 {[%clk 0:00:17.8]} 57. Bd2+ {[%clk 0:00:28.3]} 57... g5 {[%clk
0:00:18.6]} 58. Qg7+ {[%clk 0:00:27.9]} 1-0

[Event "*** Titled Tuesday Blitz AM"]
[Site "Chess.com"]
[Date "2020.01.07"]
[Round "5"]
[White "Evgeny81"]
[Black "Yaacovn"]
[Result "0-1"]
[WhiteElo "2512"]
[BlackElo "2812"]
[TimeControl "180+2"]
[EndTime "10:08:13 PST"]
[Termination "Yaacovn won by resignation"]

1. Nf3 {[%clk 0:03:01.9]} 1... Nf6 {[%clk 0:02:58.4]} 2. c4 {[%clk 0:03:03.4]}
2... b6 {[%clk 0:02:55.3]} 3. g3 {[%clk 0:03:03.5]} 3... Bb7 {[%clk 0:02:49.5]}
4. Bg2 {[%clk 0:03:04.7]} 4... c5 {[%clk 0:02:44.4]} 5. O-O {[%clk 0:03:03.2]}
5... g6 {[%clk 0:02:45.7]} 6. Nc3 {[%clk 0:02:59.8]} 6... Bg7 {[%clk 0:02:46.5]}
7. d4 {[%clk 0:02:57.5]} 7... Ne4 {[%clk 0:02:47.4]} 8. Qc2 {[%clk 0:02:43.1]}
8... Nxc3 {[%clk 0:02:45]} 9. bxc3 {[%clk 0:02:44.3]} 9... O-O {[%clk
0:02:43.8]} 10. e4 {[%clk 0:02:45.3]} 10... d6 {[%clk 0:02:44.6]} 11. Bg5 {[%clk
0:02:44.1]} 11... h6 {[%clk 0:02:43.8]} 12. Bf4 {[%clk 0:02:44.1]} 12... Nc6
{[%clk 0:02:44.6]} 13. d5 {[%clk 0:02:34]} 13... Na5 {[%clk 0:02:45.5]} 14. Nd2
{[%clk 0:02:35]} 14... Ba6 {[%clk 0:02:44.2]} 15. Qd3 {[%clk 0:02:36]} 15... Qd7
{[%clk 0:02:38]} 16. a4 {[%clk 0:02:36.7]} 16... e5 {[%clk 0:02:14]} 17. Be3
{[%clk 0:02:32.1]} 17... f5 {[%clk 0:02:06.2]} 18. f4 {[%clk 0:02:31.1]} 18...
exf4 {[%clk 0:02:04.9]} 19. Rxf4 {[%clk 0:02:24.8]} 19... Rae8 {[%clk 0:02:00]}
20. Raf1 {[%clk 0:02:06]} 20... Qxa4 {[%clk 0:01:23.7]} 21. exf5 {[%clk
0:02:05.4]} 21... g5 {[%clk 0:01:24.5]} 22. Rg4 {[%clk 0:01:39]} 22... Bc8
{[%clk 0:00:51.1]} 23. Bxg5 {[%clk 0:01:24.2]} 23... Bxf5 {[%clk 0:00:38.2]} 24.
Rxf5 {[%clk 0:00:34.6]} 24... Qd1+ {[%clk 0:00:37.9]} 25. Bf1 {[%clk 0:00:15.5]}
25... Qxg4 {[%clk 0:00:35.5]} 26. Rxf8+ {[%clk 0:00:15.7]} 26... Kxf8 {[%clk
0:00:20.2]} 27. Bf4 {[%clk 0:00:16.2]} 27... Qd7 {[%clk 0:00:15.1]} 28. Ne4
{[%clk 0:00:13.9]} 28... Nb7 {[%clk 0:00:16.1]} 29. Qf3 {[%clk 0:00:11.2]} 29...
Kg8 {[%clk 0:00:12.3]} 30. Nf2 {[%clk 0:00:08.7]} 30... Qf7 {[%clk 0:00:11.5]}
31. Bh3 {[%clk 0:00:09.5]} 31... Kh8 {[%clk 0:00:10.7]} 32. Be6 {[%clk
0:00:09.9]} 32... Qf6 {[%clk 0:00:11]} 33. Ne4 {[%clk 0:00:10.2]} 33... Qg6
{[%clk 0:00:12]} 34. h4 {[%clk 0:00:10.5]} 34... Rf8 {[%clk 0:00:09.8]} 35. h5
{[%clk 0:00:10.5]} 35... Qe8 {[%clk 0:00:11]} 36. Qg4 {[%clk 0:00:11.2]} 36...
a5 {[%clk 0:00:10]} 37. Bxd6 {[%clk 0:00:10.4]} 37... Nxd6 {[%clk 0:00:10.3]}
38. Nxd6 {[%clk 0:00:11.5]} 38... Qe7 {[%clk 0:00:11.4]} 39. Nf5 {[%clk
0:00:10.2]} 39... Qf6 {[%clk 0:00:12.6]} 40. Qf3 {[%clk 0:00:08.7]} 40... a4
{[%clk 0:00:11.4]} 41. Qd3 {[%clk 0:00:06.9]} 41... a3 {[%clk 0:00:11.9]} 42.
Nh4 {[%clk 0:00:07.9]} 42... Qf2+ {[%clk 0:00:10.9]} 43. Kh1 {[%clk 0:00:09]}
43... Qf1+ {[%clk 0:00:12.3]} 44. Qxf1 {[%clk 0:00:10.2]} 44... Rxf1+ {[%clk
0:00:13.9]} 45. Kg2 {[%clk 0:00:11.5]} 45... a2 {[%clk 0:00:15]} 46. Kxf1 {[%clk
0:00:10.6]} 46... a1=Q+ {[%clk 0:00:16.2]} 47. Kg2 {[%clk 0:00:12.1]} 47... Qxc3
{[%clk 0:00:17]} 48. Kh3 {[%clk 0:00:12]} 48... Bf6 {[%clk 0:00:17.7]} 49. Ng6+
{[%clk 0:00:11.5]} 49... Kg7 {[%clk 0:00:18.5]} 50. d6 {[%clk 0:00:12.6]} 50...
Qd3 {[%clk 0:00:15.8]} 51. d7 {[%clk 0:00:12.6]} 51... Bd8 {[%clk 0:00:15.4]}
52. Nf4 {[%clk 0:00:11.4]} 52... Qd6 {[%clk 0:00:14.8]} 53. Kg4 {[%clk 0:00:10]}
53... Bc7 {[%clk 0:00:15.9]} 54. Bf5 {[%clk 0:00:09.8]} 54... Kf7 {[%clk
0:00:16.3]} 55. Kf3 {[%clk 0:00:08.5]} 55... Qd1+ {[%clk 0:00:16.6]} 56. Kf2
{[%clk 0:00:08.6]} 56... Bxf4 {[%clk 0:00:17.7]} 0-1

[Event "*** Titled Tuesday Blitz AM"]
[Site "Chess.com"]
[Date "2020.01.07"]
[Round "5"]
[White "Hikaru"]
[Black "M1711"]
[Result "1/2-1/2"]
[WhiteElo "3150"]
[BlackElo "2535"]
[TimeControl "180+2"]
[EndTime "10:08:14 PST"]
[Termination "Game drawn by repetition"]

1. Nf3 {[%clk 0:03:01.9]} 1... c5 {[%clk 0:03:00]} 2. e4 {[%clk 0:03:00.9]} 2...
e6 {[%clk 0:03:01]} 3. g3 {[%clk 0:02:56.6]} 3... Nc6 {[%clk 0:03:00.6]} 4. Bg2
{[%clk 0:02:57.3]} 4... Nf6 {[%clk 0:03:02]} 5. d3 {[%clk 0:02:55.6]} 5... e5
{[%clk 0:03:01.7]} 6. O-O {[%clk 0:02:55.2]} 6... Be7 {[%clk 0:03:02.5]} 7. Nh4
{[%clk 0:02:53]} 7... d6 {[%clk 0:02:57.7]} 8. Nf5 {[%clk 0:02:40.8]} 8... O-O
{[%clk 0:02:56.5]} 9. Nxe7+ {[%clk 0:02:39.5]} 9... Qxe7 {[%clk 0:02:51.8]} 10.
Nc3 {[%clk 0:02:10.7]} 10... h6 {[%clk 0:02:39.9]} 11. f4 {[%clk 0:02:11]} 11...
Nd4 {[%clk 0:02:25.3]} 12. f5 {[%clk 0:02:12]} 12... b5 {[%clk 0:02:25.7]} 13.
g4 {[%clk 0:02:12.3]} 13... b4 {[%clk 0:02:25.2]} 14. Nb1 {[%clk 0:02:13.3]}
14... Nh7 {[%clk 0:02:21.4]} 15. c3 {[%clk 0:02:13.9]} 15... Nc6 {[%clk
0:02:21.9]} 16. Nd2 {[%clk 0:02:14.1]} 16... a5 {[%clk 0:02:10.8]} 17. Nf3
{[%clk 0:02:14.8]} 17... a4 {[%clk 0:02:03.9]} 18. a3 {[%clk 0:02:14.4]} 18...
bxc3 {[%clk 0:02:04.1]} 19. bxc3 {[%clk 0:02:15.1]} 19... Na5 {[%clk 0:02:04.6]}
20. Be3 {[%clk 0:02:16.2]} 20... Nb3 {[%clk 0:02:02.7]} 21. Ra2 {[%clk
0:02:16.9]} 21... Bb7 {[%clk 0:02:03.3]} 22. Nd2 {[%clk 0:02:09.2]} 22... Nxd2
{[%clk 0:01:58.8]} 23. Rxd2 {[%clk 0:02:11.1]} 23... Rfd8 {[%clk 0:01:50.2]} 24.
c4 {[%clk 0:02:11.2]} 24... Bc6 {[%clk 0:01:49.6]} 25. Qe1 {[%clk 0:02:11.8]}
25... Rab8 {[%clk 0:01:41.9]} 26. h4 {[%clk 0:02:12.1]} 26... Rb3 {[%clk
0:01:40]} 27. Qg3 {[%clk 0:02:13.3]} 27... f6 {[%clk 0:01:34.7]} 28. Ra1 {[%clk
0:02:13.7]} 28... Rdb8 {[%clk 0:01:34.7]} 29. Bf3 {[%clk 0:02:13.3]} 29... Rb1+
{[%clk 0:01:30.7]} 30. Rxb1 {[%clk 0:02:07.7]} 30... Rxb1+ {[%clk 0:01:32.6]}
31. Kh2 {[%clk 0:02:09]} 31... Rb3 {[%clk 0:01:29.8]} 32. g5 {[%clk 0:01:12.1]}
32... fxg5 {[%clk 0:01:23.2]} 33. hxg5 {[%clk 0:01:13.2]} 33... Nxg5 {[%clk
0:01:23.6]} 34. Bh5 {[%clk 0:01:12.8]} 34... Rxa3 {[%clk 0:01:15.3]} 35. Rf2
{[%clk 0:01:14]} 35... Qf6 {[%clk 0:01:09.3]} 36. Bg6 {[%clk 0:01:14.6]} 36...
Rb3 {[%clk 0:00:54.2]} 37. Rd2 {[%clk 0:01:07.7]} 37... a3 {[%clk 0:00:53.5]}
38. Qf2 {[%clk 0:01:09.1]} 38... Kf8 {[%clk 0:00:40.7]} 39. Kg2 {[%clk
0:00:51.7]} 39... Be8 {[%clk 0:00:35.3]} 40. Bxe8 {[%clk 0:00:47]} 40... Kxe8
{[%clk 0:00:37.2]} 41. Qe2 {[%clk 0:00:48.7]} 41... Qf7 {[%clk 0:00:37]} 42.
Bxg5 {[%clk 0:00:47.4]} 42... hxg5 {[%clk 0:00:38.9]} 43. Kg3 {[%clk 0:00:49]}
43... Qxc4 {[%clk 0:00:33]} 44. Kg4 {[%clk 0:00:45.3]} 44... Qc1 {[%clk
0:00:30.1]} 45. Qh2 {[%clk 0:00:44.6]} 45... Kd7 {[%clk 0:00:26.4]} 46. f6
{[%clk 0:00:38.3]} 46... gxf6 {[%clk 0:00:21.8]} 47. Kf5 {[%clk 0:00:39.9]}
47... Rb2 {[%clk 0:00:20.3]} 48. Qh7+ {[%clk 0:00:39.7]} 48... Kc6 {[%clk
0:00:21.7]} 49. Ke6 {[%clk 0:00:29.4]} 49... Qxd2 {[%clk 0:00:11.1]} 50. Qa7
{[%clk 0:00:27.9]} 50... Qb4 {[%clk 0:00:09.9]} 51. Qd7+ {[%clk 0:00:24.9]}
51... Kb6 {[%clk 0:00:10.7]} 52. Qd8+ {[%clk 0:00:26.2]} 52... Ka6 {[%clk
0:00:11.4]} 53. Qa8+ {[%clk 0:00:27.2]} 53... Kb5 {[%clk 0:00:11.4]} 54. Qe8+
{[%clk 0:00:28.6]} 54... Ka6 {[%clk 0:00:08.2]} 55. Qa8+ {[%clk 0:00:29.6]}
55... Kb6 {[%clk 0:00:08.8]} 56. Qb8+ {[%clk 0:00:28.6]} 56... Kc6 {[%clk
0:00:05]} 57. Qc8+ {[%clk 0:00:27.8]} 57... Kb5 {[%clk 0:00:05.1]} 58. Qe8+
{[%clk 0:00:28.4]} 58... Ka5 {[%clk 0:00:04.6]} 59. Qa8+ {[%clk 0:00:28.8]}
59... Kb6 {[%clk 0:00:06]} 60. Qb8+ {[%clk 0:00:27.8]} 60... Ka6 {[%clk
0:00:06]} 61. Qa8+ {[%clk 0:00:28.8]} 1/2-1/2

[Event "*** Titled Tuesday Blitz AM"]
[Site "Chess.com"]
[Date "2020.01.07"]
[Round "5"]
[White "Kirill_Klukin"]
[Black "Jabberwockiez"]
[Result "1-0"]
[WhiteElo "2703"]
[BlackElo "2287"]
[TimeControl "180+2"]
[EndTime "10:08:19 PST"]
[Termination "Kirill_Klukin won by resignation"]

1. Nf3 {[%clk 0:03:01.9]} 1... Nf6 {[%clk 0:02:59.9]} 2. d4 {[%clk 0:03:01.8]}
2... d5 {[%clk 0:02:59.8]} 3. c4 {[%clk 0:03:01.4]} 3... e6 {[%clk 0:03:00.4]}
4. Nc3 {[%clk 0:03:02.2]} 4... Be7 {[%clk 0:03:01]} 5. Bg5 {[%clk 0:03:00.7]}
5... O-O {[%clk 0:02:59.7]} 6. e3 {[%clk 0:03:02.1]} 6... h6 {[%clk 0:03:01]} 7.
Bh4 {[%clk 0:03:02.7]} 7... Ne4 {[%clk 0:03:02.3]} 8. Bxe7 {[%clk 0:03:02.2]}
8... Qxe7 {[%clk 0:03:03.9]} 9. cxd5 {[%clk 0:03:03.4]} 9... Nxc3 {[%clk
0:03:04.5]} 10. bxc3 {[%clk 0:03:05.3]} 10... exd5 {[%clk 0:03:05.8]} 11. Be2
{[%clk 0:03:07.2]} 11... Bf5 {[%clk 0:03:03.5]} 12. O-O {[%clk 0:03:08.2]} 12...
b6 {[%clk 0:03:03.7]} 13. c4 {[%clk 0:03:09.6]} 13... dxc4 {[%clk 0:02:58.5]}
14. Bxc4 {[%clk 0:03:11.5]} 14... c5 {[%clk 0:02:55.4]} 15. Bd5 {[%clk
0:03:06.2]} 15... Na6 {[%clk 0:02:45.2]} 16. Bxa8 {[%clk 0:03:06.4]} 16... Rxa8
{[%clk 0:02:47.1]} 17. Qa4 {[%clk 0:03:07.4]} 17... Nb4 {[%clk 0:02:46.1]} 18.
dxc5 {[%clk 0:03:06.9]} 18... bxc5 {[%clk 0:02:37.2]} 19. a3 {[%clk 0:03:04]}
19... Nd3 {[%clk 0:02:35.2]} 20. Nd2 {[%clk 0:02:47.5]} 20... Qg5 {[%clk
0:02:24.8]} 21. Qc6 {[%clk 0:02:26.9]} 21... Rd8 {[%clk 0:02:15.2]} 22. Nf3
{[%clk 0:02:24.2]} 22... Qg4 {[%clk 0:02:04.6]} 23. h3 {[%clk 0:02:25.2]} 23...
Qh5 {[%clk 0:02:00]} 24. Rfd1 {[%clk 0:02:15.8]} 24... Rc8 {[%clk 0:01:36.3]}
25. Qd5 {[%clk 0:02:14.1]} 25... c4 {[%clk 0:01:30]} 26. Nd4 {[%clk 0:01:20]}
26... Bg6 {[%clk 0:01:10.9]} 27. Qxh5 {[%clk 0:01:11.8]} 27... Bxh5 {[%clk
0:01:12.8]} 28. Rd2 {[%clk 0:01:13.3]} 28... Ne5 {[%clk 0:01:13.1]} 29. Rc1
{[%clk 0:01:12.2]} 29... Bg6 {[%clk 0:01:02.3]} 30. f4 {[%clk 0:01:09.6]} 30...
c3 {[%clk 0:00:57.1]} 31. Nf3 {[%clk 0:00:19.2]} 31... Nd3 {[%clk 0:00:37.1]}
32. Rcc2 {[%clk 0:00:20.6]} 32... Ne1 {[%clk 0:00:21.2]} 33. Nxe1 {[%clk
0:00:19.8]} 33... cxd2 {[%clk 0:00:22.2]} 34. Rxd2 {[%clk 0:00:21.7]} 34... Rc1
{[%clk 0:00:22]} 35. Kf2 {[%clk 0:00:22.7]} 35... Ra1 {[%clk 0:00:23.1]} 36. g4
{[%clk 0:00:24.2]} 36... f6 {[%clk 0:00:22.9]} 37. f5 {[%clk 0:00:25.2]} 37...
Bf7 {[%clk 0:00:23.6]} 38. Rd3 {[%clk 0:00:26.6]} 38... Bc4 {[%clk 0:00:23.4]}
39. Rc3 {[%clk 0:00:27.7]} 39... Bd5 {[%clk 0:00:23.8]} 40. Rd3 {[%clk
0:00:27.6]} 40... Bc4 {[%clk 0:00:24]} 41. Rd4 {[%clk 0:00:28.3]} 41... Ra2+
{[%clk 0:00:22.2]} 42. Kg3 {[%clk 0:00:28.7]} 42... Bf7 {[%clk 0:00:20.1]} 43.
Rd3 {[%clk 0:00:29.1]} 43... Bc4 {[%clk 0:00:20.2]} 44. Rc3 {[%clk 0:00:30.5]}
44... Bd5 {[%clk 0:00:21.1]} 45. Nf3 {[%clk 0:00:32]} 45... Re2 {[%clk
0:00:20.4]} 46. Rd3 {[%clk 0:00:32.4]} 46... Be4 {[%clk 0:00:19.9]} 47. Rc3
{[%clk 0:00:29.4]} 47... h5 {[%clk 0:00:19.9]} 48. Kf4 {[%clk 0:00:30]} 48...
Bd5 {[%clk 0:00:19.2]} 49. Rd3 {[%clk 0:00:29]} 49... Bc4 {[%clk 0:00:19.6]} 50.
Rd4 {[%clk 0:00:30.5]} 50... Bf7 {[%clk 0:00:19.9]} 51. g5 {[%clk 0:00:31]}
51... Rf2 {[%clk 0:00:19.3]} 52. g6 {[%clk 0:00:30.4]} 52... Be8 {[%clk
0:00:20.3]} 53. Rd8 {[%clk 0:00:31.1]} 53... Kf8 {[%clk 0:00:21.3]} 54. Kg3
{[%clk 0:00:32.2]} 54... Re2 {[%clk 0:00:21.5]} 55. Kf4 {[%clk 0:00:33.5]} 55...
Rf2 {[%clk 0:00:22.3]} 56. Rd6 {[%clk 0:00:30.2]} 56... Ke7 {[%clk 0:00:22.7]}
57. Ra6 {[%clk 0:00:31.9]} 57... Kd8 {[%clk 0:00:17.8]} 58. Ke4 {[%clk
0:00:30.4]} 58... Bc6+ {[%clk 0:00:18]} 59. Rxc6 {[%clk 0:00:30.7]} 59... Kd7
{[%clk 0:00:18.9]} 60. Ra6 {[%clk 0:00:30]} 60... Rh2 {[%clk 0:00:16.6]} 61.
Nxh2 {[%clk 0:00:30.8]} 1-0

[Event "*** Titled Tuesday Blitz AM"]
[Site "Chess.com"]
[Date "2020.01.07"]
[Round "5"]
[White "VladDobrov"]
[Black "GeorgMeier"]
[Result "1-0"]
[WhiteElo "2844"]
[BlackElo "2959"]
[TimeControl "180+2"]
[EndTime "10:08:21 PST"]
[Termination "VladDobrov won by resignation"]

1. d4 {[%clk 0:02:59.6]} 1... e6 {[%clk 0:03:01.2]} 2. Nf3 {[%clk 0:02:57.2]}
2... Nf6 {[%clk 0:03:02.5]} 3. g3 {[%clk 0:02:50.6]} 3... d5 {[%clk 0:03:03.1]}
4. Bg2 {[%clk 0:02:51.5]} 4... b5 {[%clk 0:03:04.4]} 5. O-O {[%clk 0:02:52]}
5... Nbd7 {[%clk 0:03:05.7]} 6. a4 {[%clk 0:02:51.1]} 6... b4 {[%clk 0:03:06.9]}
7. c4 {[%clk 0:02:42.4]} 7... bxc3 {[%clk 0:03:08.8]} 8. Nxc3 {[%clk 0:02:41.1]}
8... Bb4 {[%clk 0:02:52.4]} 9. Ne5 {[%clk 0:02:10.1]} 9... Bb7 {[%clk
0:02:52.6]} 10. Nd3 {[%clk 0:02:07.5]} 10... Bd6 {[%clk 0:02:50.5]} 11. b4
{[%clk 0:02:05.5]} 11... a5 {[%clk 0:02:49.3]} 12. b5 {[%clk 0:02:01.1]} 12...
c6 {[%clk 0:02:42.3]} 13. e4 {[%clk 0:01:21.9]} 13... Bb4 {[%clk 0:02:36.1]} 14.
Nxb4 {[%clk 0:00:50.2]} 14... axb4 {[%clk 0:02:37.1]} 15. Na2 {[%clk 0:00:50.5]}
15... dxe4 {[%clk 0:02:31.6]} 16. bxc6 {[%clk 0:00:49.7]} 16... Bxc6 {[%clk
0:02:32.3]} 17. Nxb4 {[%clk 0:00:51.4]} 17... Bb7 {[%clk 0:02:30.6]} 18. Ba3
{[%clk 0:00:49.1]} 18... O-O {[%clk 0:02:31.4]} 19. Nd3 {[%clk 0:00:45.8]} 19...
Re8 {[%clk 0:02:22.8]} 20. Nc5 {[%clk 0:00:31.6]} 20... Bd5 {[%clk 0:02:08.1]}
21. Qc2 {[%clk 0:00:28.3]} 21... Nxc5 {[%clk 0:02:05.3]} 22. Bxc5 {[%clk
0:00:28.9]} 22... Qa5 {[%clk 0:02:03.2]} 23. Rfb1 {[%clk 0:00:29.7]} 23... Rec8
{[%clk 0:02:03.7]} 24. h3 {[%clk 0:00:19.8]} 24... h6 {[%clk 0:02:00.9]} 25. Kh2
{[%clk 0:00:20.4]} 25... Bc6 {[%clk 0:01:48.1]} 26. Qe2 {[%clk 0:00:21.1]} 26...
Qc3 {[%clk 0:01:38]} 27. Ra3 {[%clk 0:00:21.3]} 27... Qa5 {[%clk 0:01:38.2]} 28.
Bb6 {[%clk 0:00:19.9]} 28... Qf5 {[%clk 0:01:34.9]} 29. a5 {[%clk 0:00:21]}
29... e3 {[%clk 0:01:30.7]} 30. Rf1 {[%clk 0:00:14.3]} 30... Bxg2 {[%clk
0:01:26.2]} 31. Kxg2 {[%clk 0:00:16.2]} 31... exf2 {[%clk 0:01:11.1]} 32. Rxf2
{[%clk 0:00:16.6]} 32... Qd5+ {[%clk 0:01:07.4]} 33. Qf3 {[%clk 0:00:17.9]}
33... Rc6 {[%clk 0:00:55]} 34. Bc5 {[%clk 0:00:18.1]} 34... Rc7 {[%clk
0:00:46.1]} 35. Bb6 {[%clk 0:00:18.8]} 35... Rc6 {[%clk 0:00:43.8]} 36. Re3
{[%clk 0:00:19.2]} 36... Ra6 {[%clk 0:00:37.5]} 37. g4 {[%clk 0:00:19.4]} 37...
Rd6 {[%clk 0:00:30.2]} 38. Bc5 {[%clk 0:00:19.7]} 38... Rd7 {[%clk 0:00:29.8]}
39. Bb6 {[%clk 0:00:20.6]} 39... Qxf3+ {[%clk 0:00:30.3]} 40. Rexf3 {[%clk
0:00:22.4]} 40... Nd5 {[%clk 0:00:32]} 41. Rb3 {[%clk 0:00:23.4]} 41... f6
{[%clk 0:00:29.8]} 42. Kf3 {[%clk 0:00:23.8]} 42... Kf7 {[%clk 0:00:31]} 43. Rc2
{[%clk 0:00:24.3]} 43... Rb7 {[%clk 0:00:28.1]} 44. Rcb2 {[%clk 0:00:22.8]}
44... g5 {[%clk 0:00:27.5]} 45. Ke4 {[%clk 0:00:23.4]} 45... Kg6 {[%clk
0:00:26.1]} 46. Kd3 {[%clk 0:00:23.8]} 46... h5 {[%clk 0:00:21.6]} 47. Kc4
{[%clk 0:00:24.8]} 47... Ra8 {[%clk 0:00:21]} 48. Kb5 {[%clk 0:00:23.5]} 48...
Rc8 {[%clk 0:00:16.7]} 49. Ka6 {[%clk 0:00:19.7]} 49... Rd7 {[%clk 0:00:15.8]}
50. Kb5 {[%clk 0:00:19.9]} 50... Rb7 {[%clk 0:00:16.5]} 51. Ka6 {[%clk 0:00:21]}
51... Rd7 {[%clk 0:00:17.8]} 52. Bc5 {[%clk 0:00:20.4]} 52... Rc6+ {[%clk
0:00:18.2]} 53. Kb5 {[%clk 0:00:21.5]} 53... Rc8 {[%clk 0:00:19.5]} 54. a6
{[%clk 0:00:23]} 54... Ra8 {[%clk 0:00:20.3]} 55. Ka5 {[%clk 0:00:23]} 55... e5
{[%clk 0:00:19.2]} 56. Rb7 {[%clk 0:00:23.6]} 56... Rxb7 {[%clk 0:00:19.1]} 57.
Rxb7 {[%clk 0:00:25.5]} 57... e4 {[%clk 0:00:20.6]} 58. Rd7 {[%clk 0:00:25.7]}
58... e3 {[%clk 0:00:21]} 59. Rxd5 {[%clk 0:00:25.8]} 59... e2 {[%clk
0:00:19.4]} 60. Bb4 {[%clk 0:00:27.1]} 60... Rc8 {[%clk 0:00:20.9]} 61. a7
{[%clk 0:00:27.2]} 61... Rc1 {[%clk 0:00:19.8]} 62. Ka6 {[%clk 0:00:26.4]} 62...
Rb1 {[%clk 0:00:17.8]} 1-0